Workbook

Sheet Introduction
B1: Test Laboratory Financial Evaluation Tool
B2: Introduction
B3: Product testing is fundamental to designing and implementing voluntary or mandatory minimum energy performance standards (MEPS) and labeling policies, which require a high level of confidence that products perform as claimed. A common belief is that a country must build their own national testing laboratory for support product verification testing for policy compliance. However, establishment of a testing laboratory requires a large upfront investment. The government should also secure sufficient continuous funding to support its operation and maintenance ensuring its competence and the public's confidence in the test results it provides. Before building a testing laboratory, the government should build a business case to provide a justification for establishing the facility. The key element of the business case is economic analysis to evaluate the upfront investment in construction, equipment, accreditation, and human resources, as well as ongoing operating costs including equipment calibration and maintenance, staff training, and re-accreditation. These costs should be compared against expected revenue from commercial testing and other services that the laboratory may provide. Such analysis can provide a clear picture on the annual budget that the government will have to allocate to keep the facility operational and competent. The Test Laboratory Financial Evaluation Tool was developed by CLASP to help ECOWAS policymakers evaluate if establishing a national testing laboratory is a financially viable option to support MEPS and labeling policies for appliances and products. The tool allows users to calculate the costs of building and operating a laboratory and forecast its revenue. The default costs are based on data collected through the Super-efficient Equipment and Appliance Deployment (SEAD) Initiative Testing Costs Study. Users can also choose to enter their own cost data. The Tool displays the costs and revenues in U.S. dollars or the local currencies of ECOWAS Member States. If building a national testing facility is not a financially viable option, alternative approaches for verification testing should be considered such as accepting testing results from foreign or independent private laboratories. Additionally, utilizing available regional resources such as regional product registration system (PRS) can help meet policy compliance objectives, especially if the policy enforcement efforts are resource-constrained. Refer to Guide for Building Sustainable Testing Capacity in ECOWAS Region for more information on the alternative approaches for verification testing.

Sheet Instructions
C1: Test Laboratory Financial Evaluation Tool
B2: General Information
B3: The Control sheet allows users to input data and see the results: · Orange and green cells contain default values that the user can a) keep, b) modify using the slider to increase or decrease value, b) enter their own value (0 is a valid entry). The pre-populated values are estimated based on the Super-efficient Equipment and Appliance Deployment (SEAD) Global Appliance Testing Costs Catalogue: https://clasp.ngo/publications/sead-global-appliance-testing-costs-catalogue. · White and Blue cells contain results that are calculated based on the values in the orange and green cells. Model sheet contains the formula and calculations (locked), which can be referenced.
B4: Step-by-step Guide on How to Use the Tool
B5: In the Control sheet: 1. Choose country and currency from a drop-down list. The list includes currencies for 15 ECOWAS Member States and U.S. Dollars. 2. Choose the product from a drop-down list, for which the laboratory is being considered (available products: air conditioner, refrigerator, TV, motor and lighting products). · Note: re-select currency/country or product to reset the tool. · Note: The tool uses macros (additional instructions embedded in the spreadsheet). Click the Enable Macros button at the top of the screen or if prompted.
B6: 3. In the INPUTS-COSTS box, enter cost data. · Choose Exclude from Analysis if government funding is not used to finance laboratory establishment and repayment is not required (e.g., external grant). This can also be selected for equipment, when the existing equipment is being reused. · Explanation of terms associated with different cost groups:
C7: Capital and Set-up Costs: - Product-specific equipment includes specialty equipment that is required test a particular product that must be purchased. - Generic equipment includes general equipment (e.g., voltage stabilizer, thermometer, hygrometer, sampler, etc.). If the existing testing facility already owns such equipment, its costs should be excluded or reduced. - Accreditation - estimated costs to obtain accreditation to ISO 17025 General requirements for the competence of testing and calibration laboratories, which is the main ISO standard used by testing laboratories. If the laboratory is expected to obtain accreditation to additional standards, these additional costs can be added here (manual cost modification) or under "Other costs" group. - Inter-laboratory trials - cost of conducting inter-laboratory trials such as participating in round robin testing exercises to build technical capacity for establishing repeatable and reproducible testing results. - Staff training refers to the initial training conducted for the laboratory technicians to competently operate the laboratory and perform product testing as per international and national standards. - Other costs can include the other potential costs that are not included in the above-listed categories such as import tariffs or local taxes, specialized equipment installation (which can vary significantly), building construction costs, and others.
C8: Annual Operating and Maintenance Costs: - Staffing refers to a minimum number of trained technicians. This category does not include the staff hired for laboratory administration and management. However, their salaries can be added under "Additional annual costs" category or manually added here. - Staff salary is the estimated annual salary per technician. If there are different levels of salaries then their average can be entered here. - Space refers to the minimum space required for the laboratory. It is assumed that there is an existing, suitable building for the laboratory with a reliable electricity supply. - Rent for laboratory space refers to annual rent rate to rent the laboratory space (per 10 m2). - Equipment calibration and maintenance refers to the costs for equipment calibration and maintenance to ensure that the equipment is functional. Default value is an annualized estimate. Shipping costs to calibrate equipment are not included and can be added manually here or to the 'Additional operating costs" category, if known. - Additional operating costs include capacity building, staff training, re-accreditation, re-certification. Default value is an annualized estimate. If there are anticipated other types of costs these can be manually entered to this category. - Discount rate refers to the percentage by which costs and revenues are decreased with each passing year, reflecting the time value of money (used to calculate break-even financial viability of lab in Results Summary).
B9: 4. In the INPUTS - ANNUAL REVENUE box, enter anticipated revenue information: · The tool is pre-populated with estimated number of tests expected under compliance program, which the user can keep, or a) use the slider to increase or decrease value, b) manually enter value in the green cell. · Choose Exclude from Analysis if the laboratory will not receive payment for testing products to verify compliance (e.g. from the energy efficiency compliance programme budget).
C10: Verification Testing for Compliance: - Number of Verification tests per year- the cell is pre-populated with estimated 50 tests per year. The user can adjust the number if the anticipated number of tests for compliance verification is different and known. - Price per verification test - this cell is pre-populated with the default testing price value, which the user can adjust using slider or manually, if needed. - Annual verification testing revenue is calculated using the above entries (number of tests and price). - If the laboratory will not receive revenue for conducting compliance verification testing for energy efficiency programme, then the user should check No revenue will be received from Verification testing for compliance (e.g. from government/energy efficiency programme budget, nor other entity)? box to exclude it from analysis as verification testing will not be a source of revenue.
C11: Commercial Testing includes the revenue collected from testing services provided to third-parties including manufacturers, importers, other governments, and other stakeholders. This category is optional. - Number of Commercial tests per year - the cell is pre-populated automatically showing how many commercial tests the laboratory should conduct to break even (cover all associated capital/set-up and operation & maintenance costs with revenue). If the user knows the anticipated number of commercial tests that laboratory is expected to conduct, they can manually change the number. If no commercial testing is expected, then the entry should be 0. - Price Charged Per Commercial Test - this cell is pre-populated with the default value, which the user can adjust manually, if needed. The user can compare this number to the commercial testing fees in other laboratories in the country of interest or other countries. - Annual Commercial Test Revenue is calculated using the above entries (number of tests and price).
C12: Other Annual Revenue is set to zero, but can be manually changed to add additional anticipated revenue such as ongoing government funding.
B13: 5. RESULTS SUMMARY: · First, the results section provides the summary of capital/set-up and operational & maintenance costs, as well as revenue that the laboratory is expected to generate from providing its services. · The model is built to assess the laboratory performance over 10 years of operation. · Next, the results evaluate the sustainability of the investment in the laboratory based on estimated costs and revenues. Interpreting the results: - Whether the Revenues cover Costs over 10 Years (with discounting) can be 'Break even' or "Yes" if the total revenue will match or exceed the total costs, or "No" which means that the laboratory will be operating at a loss. - Part of Costs Covered by Testing Services and Other Revenue (%) show how much of the total costs the anticipated revenue will cover, and Part of Costs that Require Additional Funding (%) show what part of costs will require additional funding. · 10-Year Net Present Value of Lab show the net present value of the laboratory calculated as a difference between the present value of revenue and the present value of costs over a 10-year period. · Simple payback period (years) shows after how many years the capital and set-up costs would be repaid. It is calculated by dividing the capital and set-up costs by the total cash flow. If the cash flow is negative then the resulting payback is "infinity", meaning that the costs will not be repaid for a very long time, if ever. · Cash Flows graph show the cost and revenue flow over 10-year period and the cumulative costs and revenues (discounted).

Sheet Control
D1: Test Laboratory Financial Evaluation Tool | N1: Reference Data - Do not move/change cells as tool will not work | Z1: https://www.xe.com/currencytables/?from=USD
N2: Products | U2: Country | V2: Currency Code | W2: Currency Used | Z2: XE Currency Table: USD - US Dollar
B3: Country and Currency: | E3: (select) | N3: Air Conditioners | U3: -- (USD) | V3: USD | Z3: 2021-01-08 19:54 UTC
N4: General Service Lighting | U4: Benin (XOF) | V4: XOF
N5: Motors | U5: Burkina Faso (XOF) | V5: XOF | Z5: All figures are live mid-market rates, which are not available to consumers and are for informational purposes only. To see the rates we quote for money transfer, please use our money transfer service.
B6: Product to Be Tested: | E6: (select) | N6: Refrigerators | U6: Cape Verde (CVE) | V6: CVE
N7: Televisions | U7: Gambia (GMD) | V7: GMD | Z7: Currency code ?? | AA7: Currency name ?? | AB7: Units per USD | AC7: USD per Unit
D8: (change country or product to reset the tool) | U8: Ghana (GHS) | V8: GHS | Z8: USD | AA8: US Dollar | AB8: 1 | AC8: 1
D9: 20 | N9: Selected Product: | O9: =INDEX(ProductsList,P9) -> Air Conditioners | P9: 1 | Q9: 1 | U9: Guinea (GNF) | V9: GNF | Z9: EUR | AA9: Euro | AB9: 0.8185808257 | AC9: 1.221626464
B10: INPUTS - COSTS | H10: RESULTS SUMMARY | N10: If a single range, multiply by these factors to create a range: | P10: 0.5 | Q10: 1.5 | U10: Guinea-Bissau (XOF) | V10: XOF | Z10: GBP | AA10: British Pound | AB10: 0.7371208621 | AC10: 1.356629627
B11: Capital and Set-up Costs | N11: Input | O11: Unit | P11: Low Estimate | Q11: High Estimate | R11: Description | U11: Ivory Coast (XOF) | V11: XOF | Z11: INR | AA11: Indian Rupee | AB11: 73.37674857 | AC11: 0.0136282953
F12: Exclude from Analysis? | H12: Costs | N12: Capital Costs | U12: Liberia (LRD) | V12: LRD | Z12: AUD | AA12: Australian Dollar | AB12: 1.290454247 | AC12: 0.7749209261
F13: (external grant, existing equipment) | H13: ="Total Capital Costs (000 "&SelectedCurrency&")" -> Total Capital Costs (000 USD) | J13: =SUM(Model!C5:C10) -> 515 | N13: Product-specific equipment | O13: ="000 "& SelectedCurrency -> 000 USD | P13: =INDEX(P$41:P$123,MATCH($N13,$N$41:$N$51,0)+MATCH(SelectedProduct,$N$38:$N$110,0)-1) *IF(INDEX($P$41:$P$123,MATCH($N13,$N$41:$N$51,0)+MATCH(SelectedProduct,$N$38:$N$110,0)-1)=INDEX($Q$41:$Q$123,MATCH($N13,$N$41:$N$51,0)+MATCH(SelectedProduct,$N$38:$N$110,0)-1),P$10,1) *IF($O13="000 "& SelectedCurrency,INDEX($AB$8:$AB$174,MATCH(SelectedCurrency,$Z$8:$Z$174,0)),1) -> 350 | Q13: 650 | R13: =INDEX(R$41:R$123,MATCH($N13,$N$41:$N$51,0)+MATCH(SelectedProduct,$N$38:$N$110,0)-1) -> Room calorimeter, control air space chamber, compressor condensing units, air handling unit, humidifiers, pressure equivalence devices, water calibration system, air sampler and psychrometer box (complete setup required commissioning) | U13: Mali (XOF) | V13: XOF | Z13: CAD | AA13: Canadian Dollar | AB13: 1.271252287 | AC13: 0.7866259203
B14: ="Product-specific equipment (000 "&SelectedCurrency&")" -> Product-specific equipment (000 USD) | E14: 500 | H14: ="Total Annual Operational and Maintenance Costs (000 "&SelectedCurrency&")" -> Total Annual Operational and Maintenance Costs (000 USD) | J14: =-SUM(Model!E11:E14) -> 86 | N14: Generic equipment (usually pre-owned) | O14: 000 USD | P14: 3 | Q14: 5 | R14: Voltage stabilizer, thermometer, hygrometer, sampler, etc. | U14: Niger (XOF) | V14: XOF | Z14: SGD | AA14: Singapore Dollar | AB14: 1.326316144 | AC14: 0.7539680525
B15: ="Generic equipment (000 "&SelectedCurrency&")" -> Generic equipment (000 USD) | E15: 4 | N15: Accreditation | O15: 000 USD | P15: 2.5 | Q15: 7.5 | R15: To ISO 17025 | U15: Nigeria (NGN) | V15: NGN | Z15: CHF | AA15: Swiss Franc | AB15: 0.8864091444 | AC15: 1.128147206
B16: ="Accreditation (000 "&SelectedCurrency&")" -> Accreditation (000 USD) | E16: 5 | N16: Inter-laboratory trials | O16: 000 USD | P16: 2.5 | Q16: 7.5 | R16: For calibrating proficiency | U16: Senegal (XOF) | V16: XOF | Z16: MYR | AA16: Malaysian Ringgit | AB16: 4.032473251 | AC16: 0.2479867659
B17: ="Inter-laboratory testing (000 "&SelectedCurrency&")" -> Inter-laboratory testing (000 USD) | E17: 5 | H17: Revenues | N17: Staff training | O17: 000 USD | P17: 0 | Q17: 20 | R17: Assumption---to be verified | U17: Sierra Leone (SLL) | V17: SLL | Z17: JPY | AA17: Japanese Yen | AB17: 103.9411215 | AC17: 0.0096208313
B18: ="Staff training (000 "&SelectedCurrency&")" -> Staff training (000 USD) | E18: 1 | H18: ="Annual Verification Testing Revenue (000 "&SelectedCurrency&")" -> Annual Verification Testing Revenue (000 USD) | J18: =Model!E22 -> 60 | N18: Other costs | O18: 000 USD | P18: 0 | Q18: 50 | R18: Assumption---to be verified | U18: Togo (XOF) | V18: XOF | Z18: CNY | AA18: Chinese Yuan Renminbi | AB18: 6.473696428 | AC18: 0.1544712532
B19: ="Other costs (000 "&SelectedCurrency&")" -> Other costs (000 USD) | E19: 0 | H19: ="Annual Commercial Testing Revenue (000 "&SelectedCurrency&")" -> Annual Commercial Testing Revenue (000 USD) | J19: =Model!E32 -> 102.7501867 | N19: Operational Costs | Z19: NZD | AA19: New Zealand Dollar | AB19: 1.383829812 | AC19: 0.7226322133
H20: ="Other Annual Revenue (000 "&SelectedCurrency&")" -> Other Annual Revenue (000 USD) | J20: =Model!E23 -> 0 | N20: Staffing | O20: people | P20: =INDEX(P$41:P$123,MATCH($N20,$N$41:$N$51,0)+MATCH(SelectedProduct,$N$38:$N$110,0)-1) *IF(INDEX($P$41:$P$123,MATCH($N20,$N$41:$N$51,0)+MATCH(SelectedProduct,$N$38:$N$110,0)-1)=INDEX($Q$41:$Q$123,MATCH($N20,$N$41:$N$51,0)+MATCH(SelectedProduct,$N$38:$N$110,0)-1),P$10,1) *IF($O20="000 "& SelectedCurrency,INDEX($AB$8:$AB$174,MATCH(SelectedCurrency,$AC$8:$AC$174,0)),1) -> 1 | Q20: =INDEX(Q$41:Q$123,MATCH($N20,$N$41:$N$51,0)+MATCH(SelectedProduct,$N$38:$N$110,0)-1) *IF(INDEX($P$41:$P$123,MATCH($N20,$N$41:$N$51,0)+MATCH(SelectedProduct,$N$38:$N$110,0)-1)=INDEX($Q$41:$Q$123,MATCH($N20,$N$41:$N$51,0)+MATCH(SelectedProduct,$N$38:$N$110,0)-1),Q$10,1) *IF($O20="000 "& SelectedCurrency,INDEX($AB$8:$AB$174,MATCH(SelectedCurrency,$Z$8:$Z$174,0)),1) -> 3 | R20: =INDEX(R$41:R$123,MATCH($N20,$N$41:$N$51,0)+MATCH(SelectedProduct,$N$38:$N$110,0)-1) -> Minimum number of trained technicians | U20: Selected Country: | V20: =INDEX($U$3:$U$18,W20) -> -- (USD) | W20: 1 | X20: 2 | Z20: THB | AA20: Thai Baht | AB20: 30.12841534 | AC20: 0.0331912578
H21: ="Total Annual Revenue (000 "&SelectedCurrency&")" -> Total Annual Revenue (000 USD) | J21: =SUM(J18:J20) -> 162.7501867 | N21: Space | O21: m2 | P21: =INDEX(P$41:P$123,MATCH($N21,$N$41:$N$51,0)+MATCH(SelectedProduct,$N$38:$N$110,0)-1) *IF(INDEX($P$41:$P$123,MATCH($N21,$N$41:$N$51,0)+MATCH(SelectedProduct,$N$38:$N$110,0)-1)=INDEX($Q$41:$Q$123,MATCH($N21,$N$41:$N$51,0)+MATCH(SelectedProduct,$N$38:$N$110,0)-1),P$10,1) *IF($O21="000 "& SelectedCurrency,INDEX($AB$8:$AB$174,MATCH(SelectedCurrency,$Z$8:$Z$174,0)),1) -> 30 | Q21: =INDEX(Q$41:Q$123,MATCH($N21,$N$41:$N$51,0)+MATCH(SelectedProduct,$N$38:$N$110,0)-1) *IF(INDEX($P$41:$P$123,MATCH($N21,$N$41:$N$51,0)+MATCH(SelectedProduct,$N$38:$N$110,0)-1)=INDEX($Q$41:$Q$123,MATCH($N21,$N$41:$N$51,0)+MATCH(SelectedProduct,$N$38:$N$110,0)-1),Q$10,1) *IF($O21="000 "& SelectedCurrency,INDEX($AB$8:$AB$174,MATCH(SelectedCurrency,$Z$8:$Z$174,0)),1) -> 90 | R21: =INDEX(R$41:R$123,MATCH($N21,$N$41:$N$51,0)+MATCH(SelectedProduct,$N$38:$N$110,0)-1) -> Minimum space requirements | U21: Selected Currency: | V21: =INDEX($V$3:$V$18,W20) -> USD | Z21: HUF | AA21: Hungarian Forint | AB21: 294.379132 | AC21: 0.0033969799
B22: Annual Operating and Maintenance Costs | N22: Equipment calibration and maintenance | O22: ="000 "& SelectedCurrency -> 000 USD | P22: =INDEX(P$41:P$123,MATCH($N22,$N$41:$N$51,0)+MATCH(SelectedProduct,$N$38:$N$110,0)-1) *IF(INDEX($P$41:$P$123,MATCH($N22,$N$41:$N$51,0)+MATCH(SelectedProduct,$N$38:$N$110,0)-1)=INDEX($Q$41:$Q$123,MATCH($N22,$N$41:$N$51,0)+MATCH(SelectedProduct,$N$38:$N$110,0)-1),P$10,1) *IF($O22="000 "& SelectedCurrency,INDEX($AB$8:$AB$174,MATCH(SelectedCurrency,$Z$8:$Z$174,0)),1) -> 5 | Q22: =INDEX(Q$41:Q$123,MATCH($N22,$N$41:$N$51,0)+MATCH(SelectedProduct,$N$38:$N$110,0)-1) *IF(INDEX($P$41:$P$123,MATCH($N22,$N$41:$N$51,0)+MATCH(SelectedProduct,$N$38:$N$110,0)-1)=INDEX($Q$41:$Q$123,MATCH($N22,$N$41:$N$51,0)+MATCH(SelectedProduct,$N$38:$N$110,0)-1),Q$10,1) *IF($O22="000 "& SelectedCurrency,INDEX($AB$8:$AB$174,MATCH(SelectedCurrency,$Z$8:$Z$174,0)),1) -> 15 | R22: =INDEX(R$41:R$123,MATCH($N22,$N$41:$N$51,0)+MATCH(SelectedProduct,$N$38:$N$110,0)-1) -> Estimated annual cost | U22: For Graphing | V22: ="000 "&SelectedCurrency -> 000 USD | Z22: AED | AA22: Emirati Dirham | AB22: 3.6725 | AC22: 0.2722940776
F23: Exclude from Analysis? | N23: Additional operating costs (capacity building, staff training, laboratory re-accreditation, re-certification) | O23: ="000 "& SelectedCurrency -> 000 USD | P23: =INDEX(P$41:P$123,MATCH($N23,$N$41:$N$51,0)+MATCH(SelectedProduct,$N$38:$N$110,0)-1) *IF(INDEX($P$41:$P$123,MATCH($N23,$N$41:$N$51,0)+MATCH(SelectedProduct,$N$38:$N$110,0)-1)=INDEX($Q$41:$Q$123,MATCH($N23,$N$41:$N$51,0)+MATCH(SelectedProduct,$N$38:$N$110,0)-1),P$10,1) *IF($O23="000 "& SelectedCurrency,INDEX($AB$8:$AB$174,MATCH(SelectedCurrency,$Z$8:$Z$174,0)),1) -> 1 | Q23: =INDEX(Q$41:Q$123,MATCH($N23,$N$41:$N$51,0)+MATCH(SelectedProduct,$N$38:$N$110,0)-1) *IF(INDEX($P$41:$P$123,MATCH($N23,$N$41:$N$51,0)+MATCH(SelectedProduct,$N$38:$N$110,0)-1)=INDEX($Q$41:$Q$123,MATCH($N23,$N$41:$N$51,0)+MATCH(SelectedProduct,$N$38:$N$110,0)-1),Q$10,1) *IF($O23="000 "& SelectedCurrency,INDEX($AB$8:$AB$174,MATCH(SelectedCurrency,$Z$8:$Z$174,0)),1) -> 3 | R23: =INDEX(R$41:R$123,MATCH($N23,$N$41:$N$51,0)+MATCH(SelectedProduct,$N$38:$N$110,0)-1) -> Estimated annual cost | Z23: HKD | AA23: Hong Kong Dollar | AB23: 7.755708606 | AC23: 0.1289372836
F24: (external grant) | N24: Yearly staff salary | O24: ="000 "& SelectedCurrency -> 000 USD | P24: =P34 *IF($P34=$Q34,P$10,1) *IF($O24="000 "& SelectedCurrency,INDEX($AB$8:$AB$174,MATCH(SelectedCurrency,$Z$8:$Z$174,0)),1) -> 0 | Q24: 50 | R24: =R34 -> Assumption---to be verified | Z24: MXN | AA24: Mexican Peso | AB24: 20.05076976 | AC24: 0.049873397
B25: Staffing (number of people) | E25: 2 | H25: Will Revenues cover Costs over 10 Years (with discounting)? | J25: =IF(ISNUMBER(J30),IF(J30>0,"Yes",IF(J30<0,"No","Break Even")),"Not applicable") -> Break Even | N25: Yearly rent (/10m2) | O25: ="000 "& SelectedCurrency -> 000 USD | P25: 0 | Q25: 6.67 | R25: =R35 -> Assumption---to be verified (in units of /10m2 to avoid rounding issues) | Z25: ZAR | AA25: South African Rand | AB25: 15.33271763 | AC25: 0.0652200102
B26: ="Staff salary (000 "&SelectedCurrency&"/person)" -> Staff salary (000 USD/person) | E26: 25 | N26: Discount rate | O26: % | P26: 3 | Q26: 16 | R26: =R36 -> Assumption---to be verified | Z26: PHP | AA26: Philippine Peso | AB26: 48.09143486 | AC26: 0.0207937235
B27: Laboratory space (m2) | E27: 60 | H27: ="Part of Costs Covered by Testing Services and Other Revenue (%)" -> Part of Costs Covered by Testing Services and Other Revenue (%) | J27: =IF((ABS(Model!C36/Model!C18))<=1, (ABS(Model!C36/Model!C18)), "100%") -> 1 | N27: Test Revenue | Z27: SEK | AA27: Swedish Krona | AB27: 8.233157328 | AC27: 0.1214600863
B28: ="Rent for laboratory space (000 "&SelectedCurrency&"/10m2)" -> Rent for laboratory space (000 USD/10m2) | E28: 4 | H28: ="Part of Costs that Require Additional Funding (%)" -> Part of Costs that Require Additional Funding (%) | J28: =IF(1-J27>=0,1-J27,"0%") -> 2.220446049e-16 | N28: Default Test Price | O28: ="000 "& SelectedCurrency -> 000 USD | P28: =INDEX(P$41:P$127,MATCH($N28,$N$41:$N$53,0)+MATCH(SelectedProduct,$N$38:$N$110,0)-1) *IF($O28="000 "& SelectedCurrency,INDEX($AB$8:$AB$174,MATCH(SelectedCurrency,$Z$8:$Z$174,0)),1) -> 1.2 | Q28: =INDEX(Q$41:Q$127,MATCH($N28,$N$41:$N$53,0)+MATCH(SelectedProduct,$N$38:$N$110,0)-1) *IF($O28="000 "& SelectedCurrency,INDEX($AB$8:$AB$174,MATCH(SelectedCurrency,$Z$8:$Z$174,0)),1) -> 1.2 | R28: =INDEX(R$41:R$127,MATCH($N28,$N$41:$N$53,0)+MATCH(SelectedProduct,$N$38:$N$110,0)-1) -> Assumption—based on costs above | Z28: IDR | AA28: Indonesian Rupiah | AB28: 14054.50872 | AC28: 7.11515e-05
N29: Number of Verification Tests | O29: units | P29: =INDEX(P$41:P$127,MATCH($N29,$N$41:$N$54,0)+MATCH(SelectedProduct,$N$38:$N$110,0)-1) *IF($O29="000 "& SelectedCurrency,INDEX($AB$8:$AB$174,MATCH(SelectedCurrency,$Z$8:$Z$174,0)),1) -> 50 | Q29: =INDEX(Q$41:Q$127,MATCH($N29,$N$41:$N$54,0)+MATCH(SelectedProduct,$N$38:$N$110,0)-1) *IF($O29="000 "& SelectedCurrency,INDEX($AB$8:$AB$174,MATCH(SelectedCurrency,$Z$8:$Z$174,0)),1) -> 50 | R29: =INDEX(R$41:R$127,MATCH($N29,$N$41:$N$54,0)+MATCH(SelectedProduct,$N$38:$N$110,0)-1) -> Assumption---to be verified | Z29: SAR | AA29: Saudi Arabian Riyal | AB29: 3.75 | AC29: 0.2666666667
H30: ="10-year Net Present Value of Lab (000 "&SelectedCurrency&")" -> 10-year Net Present Value of Lab (000 USD) | J30: =IFERROR(ROUND(Model!$C$40,4),"Not applicable") -> 0 | Z30: BRL | AA30: Brazilian Real | AB30: 5.409735759 | AC30: 0.1848519123
B31: ="Equipment calibration and maintenance (000 "&SelectedCurrency&")" -> Equipment calibration and maintenance (000 USD) | E31: 10 | H31: Simple payback period (years) | J31: =IF(SUM(Model!C5:C10)/Model!E37>0,SUM(Model!C5:C10)/Model!E37,"Infinity") -> 6.710081399 | N31: Other Inputs | Z31: TRY | AA31: Turkish Lira | AB31: 7.386108851 | AC31: 0.1353892855
B32: ="Additional annual costs (000 "&SelectedCurrency&")" -> Additional annual costs (000 USD) | E32: 2 | N32: Input | O32: Unit | P32: Low Estimate | Q32: High Estimate | R32: Description | Z32: KES | AA32: Kenyan Shilling | AB32: 109.5922343 | AC32: 0.0091247341
B33: (capacity building, staff training, re-accreditation, re-certification) | N33: Operational Costs | Z33: KRW | AA33: South Korean Won | AB33: 1093.501742 | AC33: 0.0009144933
B34: Discount Rate (%) | E34: 8 | N34: Yearly staff salary | O34: 000 $ | P34: 0 | Q34: 50 | R34: Assumption---to be verified | Z34: EGP | AA34: Egyptian Pound | AB34: 15.70001226 | AC34: 0.0636942178
N35: Yearly rent (/10m2) | O35: 000 $ | P35: 0 | Q35: 6.67 | R35: Assumption---to be verified (in units of /10m2 to avoid rounding issues) | Z35: IQD | AA35: Iraqi Dinar | AB35: 1461.137704 | AC35: 0.0006843982
N36: Discount rate | O36: % | P36: 3 | Q36: 16 | R36: Assumption---to be verified | Z36: NOK | AA36: Norwegian Krone | AB36: 8.443644299 | AC36: 0.1184322746
Z37: KWD | AA37: Kuwaiti Dinar | AB37: 0.3036093633 | AC37: 3.293706061
B38: INPUTS - ANNUAL REVENUE | N38: Air Conditioners | Z38: RUB | AA38: Russian Ruble | AB38: 74.25154564 | AC38: 0.0134677331
B39: Verification Testing for Compliance | N39: Input | O39: Unit | P39: Low Estimate | Q39: High Estimate | R39: Description | Z39: DKK | AA39: Danish Krone | AB39: 6.08818368 | AC39: 0.1642526002
N40: Capital Costs | Z40: PKR | AA40: Pakistani Rupee | AB40: 160.380687 | AC40: 0.0062351647
N41: Product-specific equipment | O41: 000 $ | P41: 350 | Q41: 650 | R41: Room calorimeter, control air space chamber, compressor condensing units, air handling unit, humidifiers, pressure equivalence devices, water calibration system, air sampler and psychrometer box (complete setup required commissioning) | Z41: ILS | AA41: Israeli Shekel | AB41: 3.185685771 | AC41: 0.3139041549
B42: Number of Verification Tests Per Year: | D42: 50 | N42: Generic equipment (usually pre-owned) | O42: 000 $ | P42: 3 | Q42: 5 | R42: Voltage stabilizer, thermometer, hygrometer, sampler, etc. | Z42: PLN | AA42: Polish Zloty | AB42: 3.692755482 | AC42: 0.2708004916
B43: ="Price per Verification Test (000 "&SelectedCurrency&"):" -> Price per Verification Test (000 USD): | D43: 1.2 | N43: Accreditation | O43: 000 $ | P43: 5 | Q43: =P43 -> 5 | R43: To ISO 17025 | Z43: QAR | AA43: Qatari Riyal | AB43: 3.64 | AC43: 0.2747252747
B44: ="Annual Verification Testing revenue (000 "&SelectedCurrency&"):" -> Annual Verification Testing revenue (000 USD): | D44: =D42*D43 -> 60 | N44: Inter-laboratory trials | O44: 000 $ | P44: 5 | Q44: =P44 -> 5 | R44: For calibrating proficiency | Z44: XAU | AA44: Gold Ounce | AB44: 0.0005418218 | AC44: 1845.625259
B45: No revenue will be received from Verification testing for compliance (e.g. from government/energy efficiency programme budget, nor other entity)? | E45: (exclude from analysis if checked as not a source of revenue) | N45: Staff training | O45: 000 $ | P45: 0 | Q45: 20 | R45: Assumption---to be verified | Z45: OMR | AA45: Omani Rial | AB45: 0.3845 | AC45: 2.600780234
N46: Other costs | O46: 000 $ | P46: 0 | Q46: 50 | R46: Assumption---to be verified | Z46: COP | AA46: Colombian Peso | AB46: 3468.954809 | AC46: 0.0002882713
B47: Commercial Testing | N47: Operational Costs | Z47: CLP | AA47: Chilean Peso | AB47: 710.8769744 | AC47: 0.0014067132
N48: Staffing | O48: people | P48: 2 | Q48: =P48 -> 2 | R48: Minimum number of trained technicians | Z48: TWD | AA48: Taiwan New Dollar | AB48: 28.00230324 | AC48: 0.0357113481
N49: Space | O49: m2 | P49: 60 | Q49: =P49 -> 60 | R49: Minimum space requirements | Z49: ARS | AA49: Argentine Peso | AB49: 85.1256938 | AC49: 0.0117473345
B50: Number of Commercial Tests Per Year: | D50: =IFERROR(Model!C52,"Not applicable") -> 85.62515557 | E50: (default value is the number needed for lab to break even) | N50: Equipment calibration and maintenance | O50: 000 $ | P50: 10 | Q50: =P50 -> 10 | R50: Estimated annual cost | Z50: CZK | AA50: Czech Koruna | AB50: 21.41773751 | AC50: 0.0466902725
B51: ="Price Charged per Commercial Test (000 "&SelectedCurrency&"):" -> Price Charged per Commercial Test (000 USD): | D51: 1.2 | N51: Additional operating costs (capacity building, staff training, laboratory re-accreditation, re-certification) | O51: 000 $ | P51: 2 | Q51: =P51 -> 2 | R51: Estimated annual cost | Z51: VND | AA51: Vietnamese Dong | AB51: 23091.10089 | AC51: 4.33067e-05
B52: ="Annual Commercial Test Revenue (000 "&SelectedCurrency&"):" -> Annual Commercial Test Revenue (000 USD): | D52: =D50*D51 -> 102.7501867 | N52: Test Revenue | Z52: MAD | AA52: Moroccan Dirham | AB52: 8.837585116 | AC52: 0.1131530828
N53: Default Test Price | O53: 000 $ | P53: 1.2 | Q53: 1.2 | R53: Assumption—based on costs above | Z53: JOD | AA53: Jordanian Dinar | AB53: 0.709 | AC53: 1.410437236
N54: Number of Verification Tests | O54: units | P54: 50 | Q54: 50 | R54: Assumption---to be verified | Z54: BHD | AA54: Bahraini Dinar | AB54: 0.376 | AC54: 2.659574468
B55: ="Other Annual Revenue (000 "&SelectedCurrency&"):" -> Other Annual Revenue (000 USD): | D55: 0 | Z55: XOF | AA55: CFA Franc | AB55: 536.9538227 | AC55: 0.0018623575
N56: General Service Lighting | Z56: LKR | AA56: Sri Lankan Rupee | AB56: 188.0069092 | AC56: 0.0053189535
N57: Input | O57: Unit | P57: Low Estimate | Q57: High Estimate | R57: Description | Z57: UAH | AA57: Ukrainian Hryvnia | AB57: 28.27396301 | AC57: 0.0353682291
N58: Capital Costs | Z58: NGN | AA58: Nigerian Naira | AB58: 382.4164843 | AC58: 0.00261495
N59: Product-specific equipment | O59: 000 $ | P59: 60 | Q59: 600 | R59: Integrating sphere, goniophotometer, spectroradiometer, colorimeter, light meter | Z59: TND | AA59: Tunisian Dinar | AB59: 2.684709863 | AC59: 0.3724797282
N60: Generic equipment (usually pre-owned) | O60: 000 $ | P60: 3.7 | Q60: 4.7 | R60: Voltage stabilizer, meters, measurement software, temperature control, AC inverter | Z60: UGX | AA60: Ugandan Shilling | AB60: 3694.115192 | AC60: 0.0002707008
N61: Accreditation | O61: 000 $ | P61: 5 | Q61: =P61 -> 5 | R61: To ISO 17025 | Z61: RON | AA61: Romanian Leu | AB61: 3.986143629 | AC61: 0.2508690336
N62: Inter-laboratory trials | O62: 000 $ | P62: 5 | Q62: =P62 -> 5 | R62: For proficiency | Z62: BDT | AA62: Bangladeshi Taka | AB62: 84.81057008 | AC62: 0.0117909831
N63: Staff training | O63: 000 $ | P63: 0 | Q63: 20 | R63: Assumption | Z63: PEN | AA63: Peruvian Sol | AB63: 3.608377525 | AC63: 0.2771328646
N64: Other costs | O64: 000 $ | P64: 0 | Q64: 50 | R64: Assumption | Z64: GEL | AA64: Georgian Lari | AB64: 3.30980417 | AC64: 0.3021326788
N65: Operational Costs | Z65: XAF | AA65: Central African CFA Franc BEAC | AB65: 536.9538227 | AC65: 0.0018623575
N66: Staffing | O66: people | P66: 2 | Q66: =P66 -> 2 | R66: Minimum number of trained technicians | Z66: FJD | AA66: Fijian Dollar | AB66: 2.039740333 | AC66: 0.4902584822
N67: Space | O67: m2 | P67: 25 | Q67: =P67 -> 25 | R67: Minimum space requirements | Z67: VEF | AA67: Venezuelan Bolívar | AB67: 9.9875 | AC67: 0.1001251564
N68: Equipment calibration and maintenance | O68: 000 $ | P68: 5 | Q68: =P68 -> 5 | R68: Estimated annual cost | Z68: VES | AA68: Venezuelan Bolívar | AB68: 1314885.08 | AC68: 7.605e-07
N69: Capacity building, staff training, laboratory re-certification, others | O69: 000 $ | P69: 2 | Q69: =P69 -> 2 | R69: Estimated annual cost | Z69: BYN | AA69: Belarusian Ruble | AB69: 2.564948731 | AC69: 0.3898713405
N70: Test Revenue | Z70: HRK | AA70: Croatian Kuna | AB70: 6.196851715 | AC70: 0.1613722655
N71: Default Test Price | O71: 000 $ | P71: 0.6 | Q71: 0.6 | R71: Assumption—based on costs above | Z71: UZS | AA71: Uzbekistani Som | AB71: 10451.72769 | AC71: 9.5678e-05
N72: Number of Verification Tests | O72: units | P72: 50 | Q72: 50 | R72: Assumption | Z72: BGN | AA72: Bulgarian Lev | AB72: 1.601004936 | AC72: 0.6246076931
Z73: DZD | AA73: Algerian Dinar | AB73: 132.254635 | AC73: 0.0075611717
N74: Motors | Z74: IRR | AA74: Iranian Rial | AB74: 42106.40498 | AC74: 2.37494e-05
N75: Input | O75: Unit | P75: Low Estimate | Q75: High Estimate | R75: Description | Z75: DOP | AA75: Dominican Peso | AB75: 58.26915786 | AC75: 0.0171617376
N76: Capital Costs | Z76: ISK | AA76: Icelandic Krona | AB76: 128.3022965 | AC76: 0.0077940928
N77: Product-specific equipment | O77: 000 $ | P77: 180 | Q77: 370 | R77: Torque transducer, power analyzers, measurement and control equipment, software, rack, motor frame. | Z77: XAG | AA77: Silver Ounce | AB77: 0.0395893123 | AC77: 25.25934253
N78: Generic equipment (usually pre-owned) | O78: 000 $ | P78: 6.2 | Q78: 10 | R78: Voltage stabilizer, ambient temperature controls, meters and sensors. | Z78: CRC | AA78: Costa Rican Colon | AB78: 611.5156928 | AC78: 0.001635281
N79: Accreditation | O79: 000 $ | P79: 5 | Q79: =P79 -> 5 | R79: To ISO 17025 | Z79: SYP | AA79: Syrian Pound | AB79: 512.8192547 | AC79: 0.0019500048
N80: Inter-laboratory trials | O80: 000 $ | P80: 3.5 | Q80: =P80 -> 3.5 | R80: For calibrating proficiency | Z80: LYD | AA80: Libyan Dinar | AB80: 1.338247717 | AC80: 0.7472458104
N81: Staff training | O81: 000 $ | P81: 0 | Q81: 20 | R81: Assumption | Z81: JMD | AA81: Jamaican Dollar | AB81: 142.2973728 | AC81: 0.0070275366
N82: Other costs | O82: 000 $ | P82: 0 | Q82: 50 | R82: Assumption | Z82: MUR | AA82: Mauritian Rupee | AB82: 39.37206506 | AC82: 0.0253987186
N83: Operational Costs | Z83: GHS | AA83: Ghanaian Cedi | AB83: 5.863494292 | AC83: 0.1705467679
N84: Staffing | O84: people | P84: 2 | Q84: =P84 -> 2 | R84: Minimum number of trained technicians | Z84: AOA | AA84: Angolan Kwanza | AB84: 649.5334994 | AC84: 0.0015395665
N85: Space | O85: m2 | P85: 25 | Q85: =P85 -> 25 | R85: Minimum space requirements | Z85: UYU | AA85: Uruguayan Peso | AB85: 42.49429265 | AC85: 0.023532572
N86: Equipment calibration and maintenance | O86: 000 $ | P86: 2 | Q86: =P86 -> 2 | R86: Estimated annual cost | Z86: AFN | AA86: Afghan Afghani | AB86: 77.20758266 | AC86: 0.0129520957
N87: Capacity building, staff training, laboratory re-certification, others | O87: 000 $ | P87: 2 | Q87: =P87 -> 2 | R87: Estimated annual cost | Z87: LBP | AA87: Lebanese Pound | AB87: 1507.5 | AC87: 0.0006633499
N88: Test Revenue | Z88: XPF | AA88: CFP Franc | AB88: 97.6826761 | AC88: 0.0102372298
N89: Default Test Price | O89: 000 $ | P89: 0.3 | Q89: 0.3 | R89: Assumption—based on costs above | Z89: TTD | AA89: Trinidadian Dollar | AB89: 6.788843907 | AC89: 0.147300485
N90: Number of Verification Tests | O90: units | P90: 50 | Q90: 50 | R90: Assumption | Z90: TZS | AA90: Tanzanian Shilling | AB90: 2318.98818 | AC90: 0.0004312226
Z91: ALL | AA91: Albanian Lek | AB91: 101.0476589 | AC91: 0.0098963203
N92: Refrigerators | Z92: XCD | AA92: East Caribbean Dollar | AB92: 2.702492091 | AC92: 0.370028835
N93: Input | O93: Unit | P93: Low Estimate | Q93: High Estimate | R93: Description | Z93: GTQ | AA93: Guatemalan Quetzal | AB93: 7.794487669 | AC93: 0.128295796
N94: Capital Costs | Z94: NPR | AA94: Nepalese Rupee | AB94: 117.9531233 | AC94: 0.0084779442
N95: Product-specific equipment* | O95: 000 $ | P95: 252 | Q95: 602 | R95: Test chamber, air handling system, chiller, control and measurement equipment, test loads and conditioning, software. | Z95: BOB | AA95: Bolivian Bolíviano | AB95: 6.882492706 | AC95: 0.1452961947
N96: Generic equipment (usually pre-owned) | O96: 000 $ | P96: 3 | Q96: 5 | R96: Voltage stabilizer, ambient temperature controls, meters and sensors. | Z96: ZWD | AA96: Zimbabwean Dollar | AB96: 361.9 | AC96: 0.0027631943
N97: Accreditation | O97: 000 $ | P97: 5 | Q97: =P97 -> 5 | R97: To ISO 17025 | Z97: BBD | AA97: Barbadian or Bajan Dollar | AB97: 2 | AC97: 0.5
N98: Inter-laboratory trials | O98: 000 $ | P98: 5 | Q98: =P98 -> 5 | R98: For calibrating proficiency | Z98: CUC | AA98: Cuban Convertible Peso | AB98: 1 | AC98: 1
N99: Staff training | O99: 000 $ | P99: 0 | Q99: 20 | R99: Assumption | Z99: LAK | AA99: Lao Kip | AB99: 9295.54218 | AC99: 0.0001075784
N100: Other costs | O100: 000 $ | P100: 0 | Q100: 50 | R100: Assumption | Z100: BND | AA100: Bruneian Dollar | AB100: 1.326316144 | AC100: 0.7539680525
N101: Operational Costs | Z101: BWP | AA101: Botswana Pula | AB101: 10.79572628 | AC101: 0.0926292473
N102: Staffing | O102: people | P102: 2 | Q102: =P102 -> 2 | R102: Minimum number of trained technicians | Z102: HNL | AA102: Honduran Lempira | AB102: 24.1234214 | AC102: 0.0414534897
N103: Space | O103: m2 | P103: 50 | Q103: =P103 -> 50 | R103: Minimum space requirements | Z103: PYG | AA103: Paraguayan Guarani | AB103: 6919.095756 | AC103: 0.0001445276
N104: Equipment calibration and maintenance | O104: 000 $ | P104: 2 | Q104: =P104 -> 2 | R104: Estimated annual cost | Z104: ETB | AA104: Ethiopian Birr | AB104: 39.30856996 | AC104: 0.0254397451
N105: Capacity building, staff training, laboratory re-accreditation and re-certification | O105: 000 $ | P105: 2 | Q105: =P105 -> 2 | R105: Estimated annual cost | Z105: NAD | AA105: Namibian Dollar | AB105: 15.33271763 | AC105: 0.0652200102
N106: Test Revenue | Z106: PGK | AA106: Papua New Guinean Kina | AB106: 3.51791946 | AC106: 0.2842589239
N107: Default Test Price | O107: 000 $ | P107: 0.8 | Q107: 0.8 | R107: Assumption—based on costs above | Z107: SDG | AA107: Sudanese Pound | AB107: 55.29827249 | AC107: 0.0180837476
N108: Number of Verification Tests | O108: units | P108: 50 | Q108: 50 | R108: Assumption | Z108: MOP | AA108: Macau Pataca | AB108: 7.988379864 | AC108: 0.1251818287
Z109: NIO | AA109: Nicaraguan Cordoba | AB109: 35.01614044 | AC109: 0.0285582588
N110: Televisions | Z110: BMD | AA110: Bermudian Dollar | AB110: 1 | AC110: 1
N111: Input | O111: Unit | P111: Low Estimate | Q111: High Estimate | R111: Description | Z111: KZT | AA111: Kazakhstani Tenge | AB111: 419.2351242 | AC111: 0.0023852963
N112: Capital Costs | Z112: PAB | AA112: Panamanian Balboa | AB112: 1 | AC112: 1
N113: Product-specific equipment | O113: 000 $ | P113: 16.85 | Q113: 39.3 | R113: Power analyzer, control and measurement equipment, test disk and control software. | Z113: BAM | AA113: Bosnian Convertible Mark | AB113: 1.601004936 | AC113: 0.6246076931
N114: Generic equipment (usually pre-owned) | O114: 000 $ | P114: 3.2 | Q114: 6.7 | R114: Voltage stabilizer, ambient temperature controls, meters and sensors. | Z114: GYD | AA114: Guyanese Dollar | AB114: 209.4458302 | AC114: 0.0047745042
N115: Accreditation | O115: 000 $ | P115: 5 | Q115: =P115 -> 5 | R115: To ISO 17025 | Z115: YER | AA115: Yemeni Rial | AB115: 250.3703496 | AC115: 0.0039940832
N116: Inter-laboratory trials | O116: 000 $ | P116: 5 | Q116: =P116 -> 5 | R116: For calibrating proficiency | Z116: MGA | AA116: Malagasy Ariary | AB116: 3778.439441 | AC116: 0.0002646595
N117: Staff training | O117: 000 $ | P117: 0 | Q117: 20 | R117: Assumption | Z117: KYD | AA117: Caymanian Dollar | AB117: 0.8199998561 | AC117: 1.219512409
N118: Other costs | O118: 000 $ | P118: 0 | Q118: 50 | R118: Assumption | Z118: MZN | AA118: Mozambican Metical | AB118: 74.59997187 | AC118: 0.0134048308
N119: Operational Costs | Z119: RSD | AA119: Serbian Dinar | AB119: 96.28078703 | AC119: 0.0103862882
N120: Staffing | O120: people | P120: 2 | Q120: =P120 -> 2 | R120: Minimum number of trained technicians | Z120: SCR | AA120: Seychellois Rupee | AB120: 21.17846055 | AC120: 0.0472177851
N121: Space | O121: m2 | P121: 25 | Q121: =P121 -> 25 | R121: Minimum space requirements | Z121: AMD | AA121: Armenian Dram | AB121: 522.5924216 | AC121: 0.0019135371
N122: Equipment calibration and maintenance | O122: 000 $ | P122: 2.5 | Q122: =P122 -> 2.5 | R122: Estimated annual cost | Z122: SBD | AA122: Solomon Islander Dollar | AB122: 7.971010936 | AC122: 0.1254546014
N123: Capacity building, staff training, laboratory re-certification, others | O123: 000 $ | P123: 2 | Q123: =P123 -> 2 | R123: Estimated annual cost | Z123: AZN | AA123: Azerbaijan Manat | AB123: 1.698987211 | AC123: 0.5885859492
N124: Test Revenue | Z124: SLL | AA124: Sierra Leonean Leone | AB124: 10226.97891 | AC124: 9.77806e-05
N125: Default Test Price | O125: 000 $ | P125: 0.5 | Q125: 0.5 | R125: Assumption—based on costs above | Z125: TOP | AA125: Tongan Pa'anga | AB125: 2.251742627 | AC125: 0.4441004882
N126: Number of Verification Tests | O126: units | P126: 50 | Q126: 50 | R126: Assumption | Z126: BZD | AA126: Belizean Dollar | AB126: 2.01575901 | AC126: 0.4960910482
Z127: MWK | AA127: Malawian Kwacha | AB127: 771.7046453 | AC127: 0.0012958326
Z128: GMD | AA128: Gambian Dalasi | AB128: 51.69421777 | AC128: 0.0193445233
Z129: BIF | AA129: Burundian Franc | AB129: 1944.999342 | AC129: 0.000514139
Z130: SOS | AA130: Somali Shilling | AB130: 577.3001328 | AC130: 0.0017322012
Z131: HTG | AA131: Haitian Gourde | AB131: 72.70223323 | AC131: 0.0137547357
Z132: GNF | AA132: Guinean Franc | AB132: 10261.44506 | AC132: 9.74522e-05
Z133: MVR | AA133: Maldivian Rufiyaa | AB133: 15.34293397 | AC133: 0.0651765824
Z134: MNT | AA134: Mongolian Tughrik | AB134: 2849.222426 | AC134: 0.000350973
Z135: CDF | AA135: Congolese Franc | AB135: 1974.749253 | AC135: 0.0005063934
Z136: STN | AA136: Sao Tomean Dobra | AB136: 19.97294577 | AC136: 0.0500677272
Z137: TJS | AA137: Tajikistani Somoni | AB137: 11.2999954 | AC137: 0.0884956112
Z138: KPW | AA138: North Korean Won | AB138: 900.0452989 | AC138: 0.0011110552
Z139: MMK | AA139: Burmese Kyat | AB139: 1327.826504 | AC139: 0.0007531104
Z140: LSL | AA140: Basotho Loti | AB140: 15.33271763 | AC140: 0.0652200102
Z141: LRD | AA141: Liberian Dollar | AB141: 166.8665932 | AC141: 0.0059928113
Z142: KGS | AA142: Kyrgyzstani Som | AB142: 83.18078365 | AC142: 0.0120220074
Z143: GIP | AA143: Gibraltar Pound | AB143: 0.7371208621 | AC143: 1.356629627
Z144: XPT | AA144: Platinum Ounce | AB144: 0.0009362323 | AC144: 1068.110981
Z145: MDL | AA145: Moldovan Leu | AB145: 17.19136349 | AC145: 0.0581687427
Z146: CUP | AA146: Cuban Peso | AB146: 26.5 | AC146: 0.0377358491
Z147: KHR | AA147: Cambodian Riel | AB147: 4054.800754 | AC147: 0.0002466212
Z148: MKD | AA148: Macedonian Denar | AB148: 50.13376361 | AC148: 0.0199466373
Z149: VUV | AA149: Ni-Vanuatu Vatu | AB149: 107.9802772 | AC149: 0.0092609505
Z150: MRU | AA150: Mauritanian Ouguiya | AB150: 36.31748264 | AC150: 0.0275349481
Z151: ANG | AA151: Dutch Guilder | AB151: 1.789945181 | AC151: 0.5586763274
Z152: SZL | AA152: Swazi Lilangeni | AB152: 15.33271763 | AC152: 0.0652200102
Z153: CVE | AA153: Cape Verdean Escudo | AB153: 90.26490765 | AC153: 0.0110785024
Z154: SRD | AA154: Surinamese Dollar | AB154: 14.1526874 | AC154: 0.0706579586
Z155: XPD | AA155: Palladium Ounce | AB155: 0.0004234956 | AC155: 2361.299622
Z156: SVC | AA156: Salvadoran Colon | AB156: 8.75 | AC156: 0.1142857143
Z157: BSD | AA157: Bahamian Dollar | AB157: 1 | AC157: 1
Z158: XDR | AA158: IMF Special Drawing Rights | AB158: 0.6931917813 | AC158: 1.442602216
Z159: RWF | AA159: Rwandan Franc | AB159: 973.7598017 | AC159: 0.0010269473
Z160: AWG | AA160: Aruban or Dutch Guilder | AB160: 1.79 | AC160: 0.5586592179
Z161: DJF | AA161: Djiboutian Franc | AB161: 177.7734422 | AC161: 0.0056251372
Z162: BTN | AA162: Bhutanese Ngultrum | AB162: 73.37674857 | AC162: 0.0136282953
Z163: KMF | AA163: Comorian Franc | AB163: 402.715367 | AC163: 0.0024831434
Z164: WST | AA164: Samoan Tala | AB164: 2.493826151 | AC164: 0.4009902613
Z165: SPL | AA165: Seborgan Luigino | AB165: 0.166666666 | AC165: 6.000000024
Z166: ERN | AA166: Eritrean Nakfa | AB166: 15 | AC166: 0.0666666667
Z167: FKP | AA167: Falkland Island Pound | AB167: 0.7371208621 | AC167: 1.356629627
Z168: SHP | AA168: Saint Helenian Pound | AB168: 0.7371208621 | AC168: 1.356629627
Z169: JEP | AA169: Jersey Pound | AB169: 0.7371208621 | AC169: 1.356629627
Z170: TMT | AA170: Turkmenistani Manat | AB170: 3.499999972 | AC170: 0.285714288
Z171: TVD | AA171: Tuvaluan Dollar | AB171: 1.290454247 | AC171: 0.7749209261
Z172: IMP | AA172: Isle of Man Pound | AB172: 0.7371208621 | AC172: 1.356629627
Z173: GGP | AA173: Guernsey Pound | AB173: 0.7371208621 | AC173: 1.356629627
Z174: ZMW | AA174: Zambian Kwacha | AB174: 21.23013976 | AC174: 0.0471028458

Sheet Model
C2: Year | D2: 0 | E2: 1 | F2: 2 | G2: 3 | H2: 4 | I2: 5 | J2: 6 | K2: 7 | L2: 8 | M2: 9 | N2: 10
A3: COSTS
A4: =Control!B13 -> 0 | B4: External Funding?
A5: =Control!B14 -> Product-specific equipment (000 USD) | B5: FALSE | C5: =IF(B5,0,INDEX(Costs,MATCH($A5,CostCategories,0))) -> 500 | D5: =-C5 -> -500
A6: =Control!B15 -> Generic equipment (000 USD) | B6: FALSE | C6: =IF(B6,0,INDEX(Costs,MATCH($A6,CostCategories,0))) -> 4 | D6: -4
A7: =Control!B16 -> Accreditation (000 USD) | B7: FALSE | C7: 5 | D7: -5
A8: =Control!B17 -> Inter-laboratory testing (000 USD) | B8: FALSE | C8: 5 | D8: -5
A9: =Control!B18 -> Staff training (000 USD) | B9: FALSE | C9: 1 | D9: -1
A10: =Control!B19 -> Other costs (000 USD) | B10: FALSE | C10: =IF(B10,0,INDEX(Costs,MATCH($A10,CostCategories,0))) -> 0 | D10: 0
A11: =Control!B26 -> Staff salary (000 USD/person) | B11: FALSE | C11: 25 | E11: =-$C11*$C44 -> -50 | F11: -50 | G11: -50 | H11: -50 | I11: -50 | J11: -50 | K11: -50 | L11: -50 | M11: -50 | N11: -50
A12: =Control!B28 -> Rent for laboratory space (000 USD/10m2) | B12: FALSE | C12: 4 | E12: =-$C12*$C45/10 -> -24 | F12: -24 | G12: -24 | H12: -24 | I12: -24 | J12: -24 | K12: -24 | L12: -24 | M12: -24 | N12: -24
A13: =Control!B31 -> Equipment calibration and maintenance (000 USD) | B13: FALSE | C13: 10 | E13: =-$C13 -> -10 | F13: -10 | G13: -10 | H13: -10 | I13: -10 | J13: -10 | K13: -10 | L13: -10 | M13: -10 | N13: -10
A14: =Control!B32 -> Additional annual costs (000 USD) | B14: FALSE | C14: 2 | E14: -2 | F14: -2 | G14: -2 | H14: -2 | I14: -2 | J14: -2 | K14: -2 | L14: -2 | M14: -2 | N14: -2
A15: Total Costs | C15: =SUM(D15:AK15) -> -1375 | D15: =SUM(D5:D14) -> -515 | E15: =SUM(E5:E14) -> -86 | F15: -86 | G15: -86 | H15: -86 | I15: -86 | J15: -86 | K15: -86 | L15: -86 | M15: -86 | N15: -86
A16: Annual Cost of Lab (Nominal) | C16: =C15/MAX($2:$2) -> -137.5
A17: Discounted Costs | C17: =SUM(D17:AK17) -> -1092.067 | D17: =D15/(1+$C$46)^D$2 -> -515 | E17: =E15/(1+$C$46)^E$2 -> -79.62962963 | F17: -73.73113855 | G17: =G15/(1+$C$46)^G$2 -> -68.26957273 | H17: -63.21256734 | I17: -58.53015494 | J17: -54.19458791 | K17: -50.18017399 | L17: -46.46312407 | M17: -43.02141117 | N17: -39.83463998
A18: Annual Cost of Lab (Discounted) | C18: =C17/MAX($2:$2) -> -109.2067
A20: REVENUES
A22: Revenue from verification testing | E22: =IF(COUNTIF($B$50,"FALSE"),$C$50,0) -> 60 | F22: =IF(COUNTIF($B$50,"FALSE"),$C$50,0) -> 60 | G22: 60 | H22: 60 | I22: 60 | J22: 60 | K22: 60 | L22: 60 | M22: 60 | N22: 60
A23: =Control!B55 -> Other Annual Revenue (000 USD): | E23: =$C$58 -> 0 | F23: =$C$58 -> 0 | G23: 0 | H23: 0 | I23: 0 | J23: 0 | K23: 0 | L23: 0 | M23: 0 | N23: 0
A24: Total Revenues Less Commercial Testing (Nominal) | E24: =SUM(E22:E23) -> 60 | F24: =SUM(F22:F23) -> 60 | G24: 60 | H24: 60 | I24: 60 | J24: 60 | K24: 60 | L24: 60 | M24: 60 | N24: 60
A25: Cash Flows Less Commercial Testing (Nominal) | C25: =SUM(D25:AK25) -> -775 | D25: =D15+D24 -> -515 | E25: -26 | F25: -26 | G25: -26 | H25: -26 | I25: -26 | J25: -26 | K25: -26 | L25: -26 | M25: -26 | N25: -26
A26: Annual Cash Flow Less Commercial Testing (Nominal) | C26: =C25/MAX($2:$2) -> -77.5
A27: Cash Flows Less Commercial Testing (Discounted) | C27: =SUM(D27:AK27) -> -689.4621164 | D27: =D25/(1+$C$46)^D$2 -> -515 | E27: =E25/(1+$C$46)^E$2 -> -24.07407407 | F27: -22.29080933 | G27: -20.63963827 | H27: -19.11077617 | I27: -17.69516312 | J27: -16.3844103 | K27: =K25/(1+$C$46)^K$2 -> -15.17075028 | L27: -14.046991 | M27: -13.00647315 | N27: -12.04303069
A28: Annual Cash Flow Less Commercial Testing (Discounted) | C28: =C27/MAX($2:$2) -> -68.94621164
A32: Revenue from commercial testing | E32: =$C$53*$C$54 -> 102.7501867 | F32: =$C$53*$C$54 -> 102.7501867 | G32: 102.7501867 | H32: 102.7501867 | I32: 102.7501867 | J32: 102.7501867 | K32: 102.7501867 | L32: 102.7501867 | M32: 102.7501867 | N32: 102.7501867
A33: Total Revenues (Nominal) | E33: =SUM(E24,E32) -> 162.7501867 | F33: =SUM(F24,F32) -> 162.7501867 | G33: 162.7501867 | H33: 162.7501867 | I33: 162.7501867 | J33: 162.7501867 | K33: 162.7501867 | L33: 162.7501867 | M33: 162.7501867 | N33: 162.7501867
A35: Discounted Revenues | C35: =SUM(D35:AK35) -> 1092.067 | D35: =D33/(1+$C$46)^D$2 -> 0 | E35: =E33/(1+$C$46)^E$2 -> 150.6946173 | F35: =F33/(1+$C$46)^F$2 -> 139.5320531 | G35: 129.1963454 | H35: 119.6262458 | I35: 110.7650424 | J35: 102.5602244 | K35: 94.96317075 | L35: 87.92886181 | M35: 81.41561279 | N35: 75.38482665
A36: Annual revenues of lab (discounted) | C36: =C35/MAX($2:$2) -> 109.2067
A37: Cash Flows | C37: =SUM(D37:AK37) -> 252.5018668 | D37: =D15+D33 -> -515 | E37: =E15+E33 -> 76.75018668 | F37: =F15+F33 -> 76.75018668 | G37: =G15+G33 -> 76.75018668 | H37: 76.75018668 | I37: 76.75018668 | J37: 76.75018668 | K37: 76.75018668 | L37: 76.75018668 | M37: 76.75018668 | N37: 76.75018668
A38: Discounted Cash Flows | C38: =SUM(D38:AK38) -> -2.202682481e-13 | D38: =D37/(1+$C$46)^D$2 -> -515 | E38: =E37/(1+$C$46)^E$2 -> 71.06498767 | F38: 65.80091451 | G38: 60.92677269 | H38: 56.41367842 | I38: 52.23488742 | J38: 48.3656365 | K38: 44.78299676 | L38: 41.46573774 | M38: 38.39420161 | N38: 35.55018668
A39: Cumulative Costs and Revenues (Discounted to Present Year) | D39: =SUM(D38:$D38) -> -515 | E39: =SUM($D38:E38) -> -443.9350123 | F39: =SUM($D38:F38) -> -378.1340978 | G39: =SUM($D38:G38) -> -317.2073251 | H39: =SUM($D38:H38) -> -260.7936467 | I39: =SUM($D38:I38) -> -208.5587593 | J39: =SUM($D38:J38) -> -160.1931228 | K39: =SUM($D38:K38) -> -115.410126 | L39: =SUM($D38:L38) -> -73.94438829 | M39: =SUM($D38:M38) -> -35.55018668 | N39: =SUM($D38:N38) -> -2.202682481e-13
A40: NPV of Total Costs and Revenues | C40: =N39 -> -2.202682481e-13
A43: Other Data
A44: =Control!B25 -> Staffing (number of people) | C44: =INDEX(Costs,MATCH($A44,CostCategories,0)) -> 2
A45: =Control!B27 -> Laboratory space (m2) | C45: =INDEX(Costs,MATCH($A45,CostCategories,0)) -> 60
A46: Discount Rate (%) | C46: =Control!E34/100 -> 0.08
A48: =Control!B42 -> Number of Verification Tests Per Year: | C48: =Control!D42 -> 50
A49: =Control!B43 -> Price per Verification Test (000 USD): | C49: =Control!D43 -> 1.2
A50: =Control!B44 -> Annual Verification Testing revenue (000 USD): | B50: FALSE | C50: =Control!D44 -> 60
B51: ^ Exclude from analysis ^
A52: Break-Even Number of Commercial Tests | C52: =PMT($C$46,MAX($2:$2),$C$27)/$C$54 -> 85.62515557 | D52: (Adjust VBA code when shifting cells)
A53: Number of Commercial Tests | C53: =Control!$D$50 -> 85.62515557
A54: =Control!B51 -> Price Charged per Commercial Test (000 USD): | C54: =Control!D51 -> 1.2
A55: =Control!B52 -> Annual Commercial Test Revenue (000 USD): | C55: =Control!D52 -> 102.7501867
A58: =Control!B55 -> Other Annual Revenue (000 USD): | C58: =Control!D55 -> 0

Sheet Flags (hidden)
A1: -- (USD)
A2: Benin (XOF)
A3: Burkina Faso (XOF)
A4: Cape Verde (CVE)
A5: Gambia (GMD)
A6: Ghana (GHS)
A7: Guinea (GNF)
A8: Guinea-Bissau (XOF)
A9: Ivory Coast (XOF)
A10: Liberia (LRD)
A11: Mali (XOF)
A12: Niger (XOF)
A13: Nigeria (NGN)
A14: Senegal (XOF)
A15: Sierra Leone (SLL)
A16: Togo (XOF)
